bitfinex-derivatives/quotes_SOLF0:USTF0_20250307
["timestamp","ask_amount","ask_price","bid_price","bid_amount"]
[1741306433835,36.56617067,145.57,145.54,0.0437137]
[1741306434040,37.63271435,145.56,145.45,1.954]
[1741306434334,37.63271435,145.5,145.4,2.0012]
[1741306434540,37.63271435,145.5,145.35,36.56]
[1741306434541,37.63271435,145.47,145.33,41.54431435]
[1741306434838,37.63271435,145.44,145.33,3.9116]
[1741306435138,0.0475263,145.4,145.37,0.04393959]
[1741306435636,6.8783,145.38,145.37,3.959e-05]
[1741306436332,10.3183,145.38,145.37,3.959e-05]
[1741306436638,6.8826,145.29,145.28,37.6796693]
[1741306436827,0.0475263,145.4,145.22,37.63271435]
[1741306436828,227.02,145.36,145.22,37.63271435]
[1741306437031,1.9902,145.43,145.32,37.63271435]
[1741306437231,1.26226306,145.42,145.35,37.63271435]
[1741306437441,37.18,145.48,145.35,37.63271435]
[1741306437631,1.2618373,145.47,145.35,37.63271435]
[1741306437938,0.05081459,145.43,145.4,1.567e-05]
[1741306438134,74.98352894,145.43,145.4,1.567e-05]
[1741306438443,6.8769,145.41,145.4,1.567e-05]
[1741306438636,233.8969,145.41,145.4,1.567e-05]
[1741306438838,238.59924878,145.41,145.4,1.567e-05]
[1741306439136,231.72234878,145.41,145.26,4.0997]
[1741306439340,3.14409243,145.4,145.26,4.0997]
[1741306439540,37.54,145.39,145.28,37.63271435]
[1741306439737,37.63271435,145.37,145.24,37.28]
[1741306439941,37.54,145.39,145.26,37.63271435]
[1741306440135,0.04862646,145.32,145.29,0.04431364]
[1741306440330,0.04862646,145.32,145.29,37.67702799]
[1741306440534,6.8789,145.37,145.29,37.63271435]
[1741306440738,0.05016908,145.32,145.29,0.04724151]
[1741306441234,0.04420253,145.32,145.29,0.04637871]
[1741306442738,6.8788,145.37,145.31,37.63271435]
[1741306442939,1.8817,145.4,145.31,37.63271435]
[1741306443146,37.63271435,145.39,145.23,1.996]
[1741306443441,37.63271435,145.36,145.23,1.996]
[1741306443835,48.0099315,145.39,145.24,37.63271435]
[1741306443836,39.1,145.35,145.24,37.63271435]
[1741306444038,0.05300582,145.31,145.28,0.04696616]
[1741306444236,39.08,145.3,145.28,0.04696616]
[1741306444447,6.8827,145.29,145.28,0.04696616]
[1741306444640,0.05300582,145.31,145.28,0.04696616]
[1741306445439,0.05300582,145.31,145.28,6.616e-05]
[1741306445745,44.36143065,145.31,145.13,37.63271435]
[1741306445943,37.63271435,145.27,145.13,37.63271435]
[1741306446244,41.2641,145.26,145.13,37.63271435]
[1741306446442,37.63271435,145.24,145.12,3.9301]
[1741306446646,227.08,145.23,145.12,3.9301]
[1741306446942,0.05164631,145.19,145.09,37.63271435]
[1741306447141,76.81271435,145.18,145.03,1.19917298]
[1741306447450,76.81271435,145.18,145.02,9.27718989]
[1741306447746,1.9736,145.17,145.07,37.63271435]
[1741306448144,0.04681372,145.13,145.02,9.27718989]
[1741306448445,37.63271435,145.1,145.02,9.27718989]
[1741306448639,6.8949,145.04,145.02,9.27718989]
[1741306449144,6.8954,145.02,145.01,6.77846593]
[1741306449646,10.3354,145.02,145.0,64.0158377]
[1741306449945,10.3354,145.02,144.86,37.63271435]
[1741306449946,6.8989,144.95,144.86,37.63271435]
[1741306450143,39.5,144.96,144.86,37.63271435]
[1741306450338,39.52,144.95,144.86,37.63271435]
[1741306450540,39.52,144.95,144.89,37.63271435]
[1741306451145,39.52,144.95,144.91,0.04421776]
[1741306451340,0.05173497,144.93,144.91,0.04421776]
[1741306452246,3.51173497,144.93,144.74,39.66]
[1741306452449,37.63271435,144.89,144.75,2.055]
[1741306452647,6.9036,144.85,144.75,2.055]
[1741306452845,39.72,144.88,144.75,2.055]
[1741306452846,227.3,144.87,144.75,2.055]
[1741306453147,237.67721715,144.87,144.59,322.40816943]
[1741306453350,1.26717472,144.86,144.67,4.1341]
[1741306453549,0.04791409,144.82,144.8,7.231e-05]
[1741306453737,0.04791409,144.82,144.67,4.1341]
[1741306453738,41.04,144.81,144.67,4.1341]
[1741306454136,37.63271435,144.78,144.67,4.1341]
[1741306454351,227.48,144.77,144.67,4.1341]
[1741306454541,41.02,144.76,144.67,4.1341]
[1741306454745,0.04424376,144.73,144.71,0.04763251]
[1741306455251,0.04424376,144.73,144.6,44.25775805]
[1741306455252,37.63271435,144.72,144.55,189.00144158]
[1741306455453,37.63271435,144.68,144.56,115.55601767]
[1741306455659,37.63271435,144.68,144.57,6.9167]
[1741306455660,227.48,144.68,144.57,6.9167]
[1741306455951,227.48,144.68,144.58,37.63271435]
[1741306456151,41.0,144.71,144.62,6.9143]
[1741306456350,41.0,144.71,144.61,37.63271435]
[1741306456544,227.66,144.75,144.65,37.63271435]
[1741306457052,6.9103,144.71,144.6,41.12]
[1741306457251,37.63271435,144.72,144.6,41.12]
[1741306457452,227.66,144.75,144.62,37.63271435]
[1741306457645,227.66,144.75,144.6,41.12]
[1741306457646,37.63271435,144.73,144.6,78.75271435]
[1741306457847,37.63271435,144.69,144.56,1.9461]
[1741306458049,37.63271435,144.66,144.56,1.9461]
[1741306458353,265.29271435,144.66,144.56,1.9461]
[1741306458556,227.66,144.66,144.56,1.9461]
[1741306458850,6.9132,144.65,144.56,1.9461]
[1741306459152,227.66,144.66,144.47,37.63271435]
[1741306459153,37.63271435,144.62,144.47,37.63271435]
[1741306459357,37.63271435,144.59,144.48,3.8963]
[1741306460054,37.63271435,144.56,144.48,3.8963]
[1741306460654,0.05174539,144.53,144.51,0.04445785]
[1741306461051,227.84,144.6,144.51,3.50445785]
[1741306461246,227.84,144.6,144.53,6.9187]
[1741306461442,41.54,144.63,144.52,37.63271435]
[1741306461643,41.54,144.63,144.48,45.4363]
[1741306461851,41.54,144.63,144.5,37.63271435]
[1741306462049,227.84,144.66,144.53,37.63271435]
[1741306462255,227.96,144.73,144.63,6.9139]
[1741306462453,227.96,144.73,144.62,37.63271435]
[1741306462751,37.63271435,144.76,144.63,3.9032]
[1741306462959,37.63271435,144.79,144.66,0.04918544]
[1741306463256,37.63271435,144.76,144.66,0.04918544]
[1741306463556,6.9112,144.69,144.63,3.9032]
[1741306463754,37.63271435,144.67,144.54,42.0]
[1741306463947,42.0,144.7,144.55,3.9032]
[1741306464151,37.63271435,144.66,144.55,3.9032]
[1741306464360,37.63271435,144.66,144.59,0.04806888]
[1741306464361,0.04641199,144.62,144.59,0.04806888]
[1741306464554,6.9154,144.61,144.59,0.04806888]
[1741306464760,228.00641199,144.62,144.59,0.04806888]
[1741306464962,37.63271435,144.61,144.49,137.46210057]
[1741306465156,6.9189,144.53,144.45,4.0798]
[1741306465361,6.9189,144.53,144.45,2.0771]
[1741306465562,42.38,144.55,144.45,2.0771]
[1741306466262,0.04913207,144.51,144.49,0.05177925]
[1741306467049,37.63271435,144.59,144.49,0.05177925]
[1741306467361,42.64,144.6,144.49,37.6844936]
[1741306467562,42.64,144.6,144.51,37.63271435]
[1741306467960,42.64,144.6,144.52,1.8993]
[1741306468455,0.0441993,144.57,144.55,0.05172294]
[1741306468660,228.12,144.68,144.55,1.93572294]
[1741306468956,270.84,144.69,144.58,37.63271435]
[1741306469161,270.84,144.69,144.59,42.7]
[1741306469560,228.12,144.69,144.59,42.7]
[1741306469761,42.76,144.74,144.61,37.63271435]
[1741306470058,42.76,144.74,144.63,0.04874497]
[1741306470251,228.12,144.75,144.63,0.04874497]
[1741306470452,228.12,144.75,144.64,42.78]
[1741306470652,228.12,144.75,144.65,1.9049]
[1741306471159,228.12,144.75,144.64,42.78]
[1741306471160,37.63271435,144.73,144.62,2.0229]
[1741306471360,37.63271435,144.67,144.58,1.9049]
[1741306471751,37.63271435,144.64,144.48,42.96]
[1741306471955,37.63271435,144.61,144.49,3.8771]
[1741306472263,6.9153,144.61,144.54,6.9181]
[1741306472464,6.9153,144.61,144.5,37.63271435]
[1741306472465,228.1,144.66,144.53,43.02]
[1741306472764,0.04931397,144.56,144.54,0.05044832]
[1741306472959,37.63271435,144.61,144.5,6.9202]
[1741306473264,0.04872607,144.56,144.54,0.04675396]
[1741306473659,43.16,144.61,144.54,0.04675396]
[1741306473858,0.04817885,144.56,144.54,0.04675396]
[1741306474061,80.91271435,144.64,144.54,0.04675396]
[1741306474364,43.28,144.64,144.53,37.63271435]
[1741306474964,80.91271435,144.64,144.53,37.63271435]
[1741306475169,0.04387378,144.6,144.57,0.04443344]
[1741306475966,228.1,144.66,144.57,0.04443344]
[1741306476263,6.9154,144.61,144.54,6.9179]
[1741306476467,37.63271435,144.61,144.51,2.089]
[1741306477060,0.04930256,144.57,144.55,0.04499529]
[1741306477458,0.04930256,144.57,144.45,80.55271435]
[1741306477868,37.63271435,144.61,144.45,80.55271435]
[1741306478068,37.63271435,144.61,144.48,37.63271435]
[1741306478464,37.63271435,144.61,144.54,6.918]
[1741306478665,0.05124349,144.56,144.53,0.05124014]
[1741306478860,37.63271435,144.61,144.48,37.63271435]
[1741306479060,0.04525919,144.56,144.53,0.04534606]
[1741306480665,42.88,144.63,144.53,0.04534606]
[1741306480874,80.55271435,144.64,144.52,4.1097]
[1741306481164,6.9158,144.6,144.53,1.9653]
[1741306481367,80.55271435,144.64,144.53,1.9653]
[1741306481757,6.9169,144.57,144.53,1.9653]
[1741306482075,6.9169,144.57,144.54,0.04426074]
[1741306482269,0.05296714,144.56,144.54,0.04426074]
[1741306482867,265.87271435,144.55,144.27,37.63271435]
[1741306483166,53.09721715,144.54,144.35,1.9239]
[1741306483369,37.63271435,144.51,144.35,82.25661435]
[1741306483669,42.72,144.54,144.38,37.63271435]
[1741306483865,42.72,144.54,144.39,2.0884]
[1741306484076,42.72,144.54,144.4,42.68]
[1741306484272,0.04911922,144.47,144.45,0.04994716]
[1741306484572,42.72,144.54,144.41,37.63271435]
[1741306484771,0.04422841,144.47,144.45,0.0473469]
[1741306484960,42.72,144.54,144.45,0.0473469]
[1741306485160,42.72,144.54,144.41,37.63271435]
[1741306485360,228.24,144.55,144.44,37.63271435]
[1741306485565,265.87271435,144.55,144.45,1.9409]
[1741306485766,265.87271435,144.55,144.46,1.9933]
[1741306486272,6.9202,144.5,144.49,3.875e-05]
[1741306486475,44.55291435,144.5,144.49,3.875e-05]
[1741306487375,48.01291435,144.5,144.49,3.875e-05]
[1741306487563,85.6456287,144.5,144.49,3.875e-05]
[1741306487762,48.01291435,144.5,144.49,3.875e-05]
[1741306487967,78.7254287,144.5,144.33,1.9933]
[1741306488173,37.63271435,144.44,144.33,1.9933]
[1741306488367,42.88,144.43,144.33,39.62601435]
[1741306488674,228.28,144.45,144.34,37.63271435]
[1741306488975,37.63271435,144.41,144.32,8.9582]
[1741306489274,37.68478971,144.41,144.38,0.05004517]
[1741306489475,37.63271435,144.41,144.26,41.54441435]
[1741306489665,37.67804542,144.41,144.38,0.04574332]
[1741306489870,42.84,144.42,144.29,37.63271435]
[1741306490074,0.04854599,144.41,144.38,0.04477556]
[1741306490277,42.84,144.42,144.3,44.6866]
[1741306490575,37.63271435,144.43,144.32,37.63271435]
[1741306490775,0.04555261,144.37,144.35,0.05137099]
[1741306490977,228.28,144.45,144.35,42.81137099]
[1741306491177,265.91271435,144.45,144.36,1.8819]
[1741306491473,37.63271435,144.42,144.3,1.8866]
[1741306491671,37.63271435,144.39,144.3,1.8866]
[1741306491867,6.9293,144.32,144.28,1.8819]
[1741306492065,37.68386908,144.36,144.33,0.05061424]
[1741306492270,37.63271435,144.36,144.28,1.8819]
[1741306492471,6.9293,144.32,144.28,1.8819]
[1741306492677,308.97271435,144.36,144.31,0.05109862]
[1741306492873,37.63271435,144.33,144.31,9.862e-05]
[1741306493180,37.63271435,144.33,144.25,1.3864818]
[1741306493369,37.63271435,144.27,144.25,1.3864818]
[1741306493571,6.9317,144.26,144.25,8.18e-05]
[1741306493766,37.63271435,144.27,144.16,3.8922]
[1741306493970,6.9347,144.2,144.16,3.8922]
[1741306494166,0.04786462,144.23,144.2,0.04499226]
[1741306494372,37.63271435,144.21,144.2,0.04499226]
[1741306494568,37.63271435,144.21,144.12,27.39417174]
[1741306494773,37.63271435,144.21,144.19,0.05108168]
[1741306495068,37.63271435,144.2,144.12,27.39417174]
[1741306495375,37.63271435,144.15,144.12,27.30907174]
[1741306495765,228.56,144.16,144.12,27.30907174]
[1741306495970,37.63271435,144.15,144.02,217.30907174]
[1741306496172,37.63271435,144.1,144.02,27.30907174]
[1741306496376,37.63271435,144.07,144.02,27.30907174]
[1741306496572,266.19271435,144.07,144.02,27.30907174]
[1741306496868,37.63271435,144.04,144.03,0.05241008]
[1741306497068,81.49271435,144.04,144.02,26.10398182]
[1741306497473,43.84,144.04,144.02,26.10398182]
[1741306497869,37.63271435,144.03,144.02,26.10398182]
[1741306498376,6.9443,144.0,143.99,126.34925579]
[1741306498571,75.2654287,144.0,143.83,6.9524]
[1741306498772,37.63271435,143.92,143.84,7.21810243]
[1741306498973,37.63271435,143.89,143.84,7.21810243]
[1741306499174,37.63271435,143.86,143.84,0.27808676]
[1741306499372,43.82,143.85,143.84,0.27808676]
[1741306499573,81.45271435,143.85,143.84,0.32325677]
[1741306499779,159.7840312,143.85,143.84,0.32325677]
[1741306500081,122.15131685,143.85,143.84,0.32325677]
[1741306500378,156.3040312,143.85,143.84,0.32325677]
[1741306500675,118.67131685,143.85,143.84,0.32325677]
[1741306500877,156.3040312,143.85,143.84,0.32325677]
[1741306501179,159.7840312,143.85,143.84,0.32325677]
[1741306501577,156.3040312,143.85,143.72,6.94001567]
[1741306501773,37.63271435,143.77,143.72,6.94001567]
[1741306502080,37.63271435,143.74,143.58,3.20538236]
[1741306502281,37.63271435,143.74,143.65,8.90101567]
[1741306502471,44.52,143.76,143.65,1.961]
[1741306502673,44.52,143.76,143.65,39.59371435]
[1741306502874,0.04834079,143.71,143.68,0.04654245]
[1741306503081,336.83322039,143.85,143.69,37.63271435]
[1741306503082,37.63271435,143.83,143.69,37.63271435]
[1741306503269,71.71432678,143.76,143.72,22.29725535]
[1741306503474,76.05005444,143.85,143.75,37.63271435]
[1741306504182,76.05005444,143.85,143.78,37.63271435]
[1741306504477,1e-08,143.84,143.82,37.63271435]
[1741306504678,142.04738505,143.85,143.83,6.9525]
[1741306504877,77.06872249,143.85,143.84,82.17271435]
[1741306505082,227.79898724,143.87,143.84,85.65271435]
[1741306505282,227.79898724,143.87,143.85,6.9515]
[1741306505485,227.79898724,143.87,143.81,37.63271435]
[1741306505873,168.61612596,143.87,143.85,37.68049905]
[1741306506076,273.35878469,143.94,143.86,44.5]
[1741306506284,273.35878469,143.94,143.93,6.9476]
[1741306506482,250.86458469,143.94,143.93,51.4676]
[1741306506676,198.59848469,143.94,143.93,54.9476]
[1741306507081,117.81028469,143.94,143.93,54.9476]
[1741306507282,76.23398469,143.94,143.93,54.9476]
[1741306507486,60.82068469,143.94,143.93,54.9476]
[1741306507685,0.05032537,143.95,143.93,44.52]
[1741306508283,41.69,143.94,143.92,0.05100479]
[1741306508485,41.69,143.93,143.84,44.44]
[1741306508785,6.95,143.89,143.82,1.39062717]
[1741306508992,41.69,143.89,143.82,1.39062717]
[1741306509187,3.9027,143.94,143.84,37.63271435]
[1741306509388,3.9027,143.94,143.87,37.63271435]
[1741306509588,6.95,143.91,143.85,44.38]
[1741306509783,6.95,143.89,143.88,0.04479203]
[1741306509983,41.69,143.83,143.72,44.36]
[1741306510180,6.95,143.78,143.76,136.40819384]
[1741306510383,6.95,143.79,143.76,136.40819384]
[1741306510589,6.95,143.79,143.7,1.21009806]
[1741306510590,48.36,143.79,143.7,1.21009806]
[1741306510888,28.33238216,143.71,143.6,37.63271435]
[1741306511191,28.33238216,143.66,143.65,145.25841807]
[1741306511393,28.33238216,143.66,143.65,144.25841807]
[1741306512392,28.33238216,143.66,143.64,0.05139383]
[1741306512590,28.33238216,143.65,143.64,0.05139383]
[1741306512982,28.33238216,143.65,143.64,9.383e-05]
[1741306513183,41.11271435,143.65,143.63,276.23974217]
[1741306513384,78.7454287,143.65,143.63,209.88697961]
[1741306513695,78.7454287,143.65,143.45,37.63271435]
[1741306513886,78.7454287,143.65,143.44,1.9656]
[1741306513887,37.63271435,143.58,143.44,1.9656]
[1741306514085,37.63271435,143.55,143.44,1.9656]
[1741306514286,37.63271435,143.55,143.41,86.92021435]
[1741306514484,0.0468515,143.52,143.5,0.05312085]
[1741306514687,37.67956585,143.52,143.41,49.2875]
[1741306514891,0.0468515,143.52,143.41,86.92021435]
[1741306515087,45.28,143.56,143.5,0.04702474]
[1741306515499,0.05100628,143.48,143.41,4.0075]
[1741306515794,6.9685,143.5,143.41,4.0075]
[1741306515995,0.04474331,143.46,143.43,0.04638289]
[1741306516394,6.971,143.45,143.43,0.04638289]
[1741306516695,37.63271435,143.44,143.43,8.289e-05]
[1741306517487,0.04474331,143.46,143.43,8.289e-05]
[1741306517993,37.63271435,143.45,143.43,8.289e-05]
[1741306518195,37.63271435,143.44,143.43,8.289e-05]
[1741306518390,267.19271435,143.44,143.26,46.74]
[1741306518597,229.56,143.44,143.26,46.74]
[1741306518790,37.63271435,143.4,143.26,46.74]
[1741306518995,37.63271435,143.43,143.26,37.63271435]
[1741306519193,6.9779,143.31,143.23,6.0946]
[1741306519391,37.63271435,143.3,143.23,4.016]
[1741306519600,0.05302596,143.28,143.26,0.05308476]
[1741306519897,7.03232596,143.28,143.26,0.05308476]
[1741306520093,0.05302596,143.28,143.26,0.05308476]
[1741306520297,42.41434492,143.27,143.26,0.05308476]
[1741306520487,42.41434492,143.27,143.16,1.21499895]
[1741306520687,37.63271435,143.23,143.01,48.74]
[1741306520894,37.63271435,143.2,143.06,37.63271435]
[1741306521193,37.63271435,143.2,142.99,1.8905]
[1741306521194,38.00954175,143.15,142.99,1.8905]
[1741306521385,38.00954175,143.15,142.98,229.76]
[1741306521386,38.00954175,143.12,142.98,38.00954175]
[1741306521591,49.88,143.11,143.01,38.00954175]
[1741306521793,0.053349,143.08,143.06,0.05108829]
[1741306521988,38.00954175,143.17,143.06,0.05108829]
[1741306522195,38.00954175,143.14,142.97,88.20954175]
[1741306522391,38.00954175,143.18,143.03,38.00954175]
[1741306522597,50.2,143.24,143.04,50.26]
[1741306522598,147.36166813,143.14,143.04,50.26]
[1741306522897,38.00954175,143.07,142.65,1380.28]
[1741306523104,147.36166813,143.14,142.94,38.00954175]
[1741306523105,51.16,143.11,142.94,38.00954175]
[1741306523313,0.0509401,143.1,143.08,0.04519328]
[1741306523495,185.37120988,143.14,142.95,2.0643]
[1741306523800,38.00954175,143.09,143.08,8.431e-05]
[1741306524003,38.00954175,143.12,142.96,38.00954175]
[1741306524200,51.94,143.14,142.96,38.00954175]
[1741306524201,38.00954175,143.11,142.96,1.21676194]
[1741306524399,230.04,143.12,142.96,1.21676194]
[1741306524704,38.00954175,143.08,142.75,53.02]
[1741306524896,38.00954175,142.98,142.83,38.00954175]
[1741306525205,0.04878537,143.05,143.03,6.117e-05]
[1741306525402,55.4,143.04,142.84,0.99266117]
[1741306525596,38.00954175,142.91,142.77,2.0481]
[1741306525797,56.84,142.92,142.77,40.05764175]
[1741306525992,230.28,142.91,142.48,0.28074115]
[1741306526193,38.00954175,142.79,142.58,2.68912266]
[1741306526406,38.00954175,142.72,142.59,1.4026229]
[1741306526708,0.0478239,142.7,142.67,0.04449282]
[1741306526901,38.00954175,142.69,142.67,0.04449282]
[1741306527107,38.00954175,142.8,142.59,39.41216465]
[1741306527303,0.04420423,142.69,142.67,0.05238762]
[1741306527500,0.04420423,142.69,142.67,8.762e-05]
[1741306527704,7.05240423,142.69,142.67,8.762e-05]
[1741306528103,7.05240423,142.69,140.35,31.76328945]
[1741306528104,306.5790835,142.68,142.5,1.40350877]
[1741306528410,38.00954175,142.65,142.51,38.00954175]
[1741306528601,7.0103,142.65,142.52,38.00954175]
[1741306528799,38.00954175,142.63,142.5,1.40350877]
[1741306528997,38.00954175,142.73,142.5,1.40350877]
[1741306528998,38.00954175,142.58,142.5,1.40350877]
[1741306529300,38.00954175,142.59,142.5,1.40350877]
[1741306529499,0.04867699,142.55,142.53,0.049079]
[1741306529702,7.0099,142.66,142.53,0.049079]
[1741306529906,38.00954175,142.6,142.53,0.049079]
[1741306530103,230.56,142.64,142.29,230.56]
[1741306530309,38.00954175,142.52,142.15,230.56]
[1741306530498,1.9396,142.51,142.16,1.4068655]
[1741306530696,230.56,142.53,142.17,1.28877164]
[1741306530895,38.00954175,142.42,142.17,39.29831339]
[1741306531099,38.00954175,142.38,142.18,1.28877164]
[1741306531304,1385.48,142.4,142.16,1.4068655]
[1741306531503,38.00954175,142.18,141.84,230.9]
[1741306531700,38.00954175,142.16,141.84,230.9]
[1741306531899,38.00954175,142.16,141.78,230.9]
[1741306532101,38.00954175,142.16,141.89,38.00954175]
[1741306532403,38.00954175,142.24,141.96,38.00954175]
[1741306532597,38.00954175,142.24,142.04,38.00954175]
[1741306532805,38.00954175,142.24,141.98,231.62181176]
[1741306532806,38.00954175,142.26,142.07,38.00954175]
[1741306533010,38.00954175,142.31,142.1,0.03357103]
[1741306533011,38.00954175,142.24,142.1,0.03357103]
[1741306533201,38.00954175,142.24,142.05,3.8633]
[1741306533202,38.00954175,142.17,142.05,3.8633]
[1741306533404,230.9,142.26,141.98,0.72181176]
[1741306533707,38.00954175,142.24,141.98,0.25343379]
[1741306533903,230.9,142.26,141.98,0.25343379]
[1741306534105,38.00954175,142.24,141.98,0.25343379]
[1741306534305,76.0190835,141.99,141.79,1.9297]
[1741306534504,231.3,141.98,141.68,38.00954175]
[1741306534709,38.00954175,141.96,141.64,5.9551]
[1741306534911,38.00954175,141.96,141.68,38.00954175]
[1741306535207,38.00954175,141.89,141.44,231.3]
[1741306535402,231.3,141.88,141.61,38.00954175]
[1741306535607,38.00954175,141.89,141.65,0.03908186]
[1741306536115,231.3,141.98,141.15,488.0]
[1741306536303,38.39780539,141.72,141.4,38.39780539]
[1741306536505,7.0536,141.77,141.41,1.9383]
[1741306536804,43.82513586,141.71,141.41,1.9383]
[1741306537008,0.0497452,141.6,141.41,1.9383]
[1741306537602,43.82513586,141.76,141.21,231.76]
[1741306537905,43.82513586,141.6,140.9,231.76]
[1741306538108,231.76,141.59,140.96,175.30054344]
[1741306538403,43.82513586,141.51,141.24,0.04454523]
[1741306538605,0.04838912,141.29,141.24,0.04454523]
[1741306538810,0.04838912,141.29,141.17,43.82513586]
[1741306539011,3.8399,141.58,141.17,3.54]
[1741306539206,43.82513586,141.45,141.25,0.04454523]
[1741306539505,3.8399,141.58,141.18,0.29088]
[1741306539711,0.05199031,141.36,141.18,0.29088]
[1741306540114,43.82513586,141.55,141.18,0.29088]
[1741306540303,21.1783,141.66,141.18,0.29088]
[1741306540499,1.41193081,141.65,141.34,43.82513586]
[1741306540701,1.41193081,141.65,141.35,232.24]
[1741306540908,1.41193081,141.65,141.36,234.2174]
[1741306541109,1.41193081,141.65,141.37,232.24]
[1741306541305,43.82513586,141.76,141.37,232.24]
[1741306541506,1.41093474,141.75,141.49,0.05030136]
[1741306541702,7.0617,141.61,141.4,7.0717]
[1741306542012,43.82513586,141.73,141.48,232.24]
[1741306542222,1.41093474,141.75,141.51,7.0663]
[1741306542425,1.41093474,141.75,141.58,43.82513586]
[1741306542617,232.24,142.0,141.59,5.9674]
[1741306542618,43.82513586,141.91,141.59,5.9674]
[1741306542931,43.82513586,141.94,141.69,43.82513586]
[1741306543122,232.24,142.18,141.7,232.24]
[1741306543417,5.8789,142.22,141.71,232.4]
[1741306543624,3.8983,142.22,141.82,43.82513586]
[1741306543925,43.82513586,142.24,141.87,43.82513586]
[1741306544114,43.82513586,142.24,141.83,238.2572]
[1741306544423,43.82513586,142.13,141.9,43.82513586]
[1741306544720,43.82513586,142.11,141.83,238.2572]
[1741306545017,43.82513586,142.2,142.0,0.04451761]
[1741306545222,232.4,142.32,142.0,0.04451761]
[1741306545223,43.82513586,142.22,142.0,0.04451761]
[1741306545426,43.82513586,142.22,141.99,232.4]
[1741306545613,232.4,142.32,141.99,276.22513586]
[1741306545614,43.82513586,142.24,141.99,276.22513586]
[1741306545919,43.82513586,142.2,142.0,1.8785]
[1741306546120,43.82513586,142.24,142.04,43.82513586]
[1741306546316,43.82513586,142.29,142.04,43.82513586]
[1741306546516,47.31033332,142.36,142.09,0.04998147]
[1741306546717,47.31033332,142.36,142.1,232.34]
[1741306546913,47.31033332,142.39,142.1,232.34]
[1741306547314,236.322,142.55,142.18,7.033]
[1741306547520,232.34,142.61,142.16,47.31033332]
[1741306547718,47.31033332,142.5,142.21,47.31033332]
[1741306547920,0.04529615,142.38,142.35,0.05341772]
[1741306548311,47.31033332,142.54,142.35,0.05341772]
[1741306548512,47.31033332,142.54,142.33,232.34]
[1741306548727,47.31033332,142.54,142.35,1.63]
[1741306549121,47.31033332,142.44,142.35,1.63]
[1741306549326,47.31033332,142.39,142.35,1.63]
[1741306549517,47.31033332,142.43,142.38,0.04803817]
[1741306549828,0.04906699,142.41,142.38,0.04803817]
[1741306550021,47.31033332,142.48,142.36,11.07]
[1741306550220,47.31033332,142.43,142.36,11.07]
[1741306550426,0.04476932,142.41,142.38,0.0485597]
[1741306550726,0.04476932,142.41,142.36,7.45139398]
[1741306551221,3.56476932,142.41,142.31,14.2]
[1741306551422,0.04476932,142.41,142.32,2.06139398]
[1741306551623,47.35510264,142.41,142.31,14.2]
[1741306551823,47.31033332,142.41,142.32,7.58]
[1741306552125,0.05294255,142.38,142.35,0.04705335]
[1741306552334,47.31033332,142.36,142.31,14.2]
[1741306552624,50.83033332,142.36,142.31,14.2]
[1741306552824,50.83033332,142.36,142.08,233.997]
[1741306553019,47.31033332,142.36,142.08,235.22043511]
[1741306553226,47.31033332,142.31,142.18,9.64139398]
[1741306553422,47.31033332,142.31,142.02,47.31033332]
[1741306553423,47.31033332,142.26,142.13,9.64139398]
[1741306553624,0.05292584,142.24,142.21,0.05345256]
[1741306554032,0.05292584,142.24,142.04,28.16]
[1741306554033,47.31033332,142.22,142.04,28.16]
[1741306554227,47.31033332,142.22,142.04,35.18003012]
[1741306554417,47.31033332,142.16,142.04,28.16]
[1741306554623,47.31033332,142.16,142.06,9.64139398]
[1741306554822,47.31033332,142.11,142.04,28.16]
[1741306555024,47.31033332,142.06,141.77,232.08]
[1741306555227,47.31033332,142.08,141.81,1.22567579]
[1741306555527,47.31033332,142.07,142.06,0.05128059]
[1741306555727,47.31033332,142.16,142.0,9.64139398]
[1741306556025,47.31033332,142.16,141.86,232.14]
[1741306556026,47.31033332,142.16,142.04,9.64139398]
[1741306556229,1392.5,142.31,142.07,9.64139398]
[1741306556230,1.40696447,142.15,142.07,9.64139398]
[1741306556432,47.31033332,142.29,142.14,9.64139398]
[1741306556637,47.31033332,142.29,142.2,9.64139398]
[1741306556936,47.31033332,142.34,142.22,9.64139398]
[1741306557120,279.45033332,142.38,142.27,9.64139398]
[1741306557324,47.31033332,142.38,142.12,277.82881251]